bitfinex/quotes_BTCUSD_20250619
["timestamp","ask_amount","ask_price","bid_price","bid_amount"]
[1750331425712,0.34,104910.0,104900.0,0.57999253]
[1750331426134,0.70021562,104910.0,104900.0,0.57999253]
[1750331432522,0.34,104910.0,104900.0,0.57999253]
[1750331432721,0.70021562,104910.0,104900.0,0.57999253]
[1750331432916,0.34,104910.0,104900.0,0.56299253]
[1750331433217,0.70021562,104910.0,104900.0,0.36767253]
[1750331433552,0.70021562,104910.0,104900.0,0.56299253]
[1750331442270,0.34,104910.0,104900.0,0.56299253]
[1750331442513,0.70021562,104910.0,104900.0,0.56299253]
[1750331443386,0.34,104910.0,104900.0,0.56299253]
[1750331443589,0.70021562,104910.0,104900.0,0.56299253]
[1750331446153,0.34,104910.0,104900.0,0.56299253]
[1750331446369,0.70021562,104910.0,104900.0,0.59852433]
[1750331446575,0.70021562,104910.0,104900.0,0.56299253]
[1750331447219,0.34,104910.0,104900.0,0.56299253]
[1750331447431,0.70021562,104910.0,104900.0,0.56299253]
[1750331448306,0.37691562,104920.0,104910.0,0.21923442]
[1750331448532,0.37691562,104920.0,104910.0,0.31451335]
[1750331449450,0.76406149,104920.0,104910.0,0.31451335]
[1750331450391,0.75453124,104920.0,104910.0,0.31451335]
[1750331450489,0.74666149,104920.0,104910.0,0.31451335]
[1750331450712,1.08666149,104920.0,104910.0,0.31451335]
[1750331450938,1.08666149,104920.0,104910.0,0.35004515]
[1750331451169,1.08666149,104920.0,104910.0,0.31451335]
[1750331452538,1.08666158,104920.0,104910.0,0.31451335]
[1750331452975,1.0961921,104920.0,104910.0,0.31451335]
[1750331453193,1.08666158,104920.0,104910.0,0.31451335]
[1750331454462,1.09619201,104920.0,104910.0,0.31451335]
[1750331454895,1.08666158,104920.0,104910.0,0.31451335]
[1750331455575,1.07713124,104920.0,104910.0,0.31451335]
[1750331455798,1.08666149,104920.0,104910.0,0.31451335]
[1750331457761,1.07713124,104920.0,104910.0,0.31451335]
[1750331459356,1.06043124,104920.0,104910.0,0.33011335]
[1750331459927,0.70021562,104920.0,104910.0,0.33011335]
[1750331460144,0.70021562,104920.0,104910.0,0.34711335]
[1750331460550,1.06043124,104920.0,104910.0,0.33011335]
[1750331463019,1.06043124,104920.0,104910.0,0.37011335]
[1750331464340,1.06043124,104920.0,104910.0,0.35451335]
[1750331464598,1.07753124,104920.0,104910.0,0.35451335]
[1750331467534,1.07753124,104920.0,104910.0,0.46955335]
[1750331469653,1.08706149,104920.0,104910.0,0.46955335]
[1750331470129,1.07753124,104920.0,104910.0,0.46955335]
[1750331470345,1.08706149,104920.0,104910.0,0.46955335]
[1750331471046,1.07753124,104920.0,104910.0,0.46955335]
[1750331471528,1.11239219,104920.0,104910.0,0.46955335]
[1750331471764,1.12192298,104920.0,104910.0,0.46955335]
[1750331472313,1.11239219,104920.0,104910.0,0.46955335]
[1750331472564,1.12192289,104920.0,104910.0,0.46955335]
[1750331477022,1.1123921,104920.0,104910.0,0.46955335]
[1750331477919,1.1219228,104920.0,104910.0,0.46955335]
[1750331479728,1.1123921,104920.0,104910.0,0.46955335]
[1750331481679,1.1219228,104920.0,104910.0,0.46955335]
[1750331482729,1.12192289,104920.0,104910.0,0.46955335]
[1750331482936,1.1123921,104920.0,104910.0,0.46955335]
[1750331483350,1.1219228,104920.0,104910.0,0.46955335]
[1750331483563,1.1061228,104920.0,104910.0,0.46955335]
[1750331485667,1.0965921,104920.0,104910.0,0.46955335]
[1750331485887,1.1061228,104920.0,104910.0,0.46955335]
[1750331487014,1.0965921,104920.0,104910.0,0.46955335]
[1750331487239,1.1121921,104920.0,104910.0,0.46955335]
[1750331487447,1.1217228,104920.0,104910.0,0.46955335]
[1750331489480,1.08706158,104920.0,104910.0,0.46955335]
[1750331489903,1.08706149,104920.0,104910.0,0.46955335]
[1750331490121,0.36663025,104920.0,104910.0,0.50508515]
[1750331490340,1.08706149,104920.0,104910.0,0.46955335]
[1750331491197,1.07753124,104920.0,104910.0,0.46955335]
[1750331491628,0.3571,104920.0,104910.0,0.46955335]
[1750331491845,1.07753124,104920.0,104910.0,0.46955335]
[1750331493668,1.08706149,104920.0,104910.0,0.46955335]
[1750331494089,1.07753124,104920.0,104910.0,0.46955335]
[1750331498792,1.06043124,104920.0,104910.0,0.48665335]
[1750331499419,1.06043124,104920.0,104910.0,0.48425335]
[1750331500086,1.07733124,104920.0,104910.0,0.48425335]
[1750331500294,1.08686149,104920.0,104910.0,0.48425335]
[1750331500510,1.08686149,104920.0,104910.0,0.46715335]
[1750331500762,1.07733124,104920.0,104910.0,0.46715335]
[1750331502760,1.08686149,104920.0,104910.0,0.46715335]
[1750331502977,1.07733124,104920.0,104910.0,0.46715335]
[1750331511836,1.08686158,104920.0,104910.0,0.46715335]
[1750331512035,1.07733124,104920.0,104910.0,0.46715335]
[1750331512254,1.08686149,104920.0,104910.0,0.50268515]
[1750331512470,1.08686149,104920.0,104910.0,0.31211335]
[1750331512620,1.08686149,104920.0,104910.0,0.46711335]
[1750331512803,1.09639201,104920.0,104910.0,0.46711335]
[1750331513403,1.08686149,104920.0,104910.0,0.46711335]
[1750331513610,1.09639192,104920.0,104910.0,0.46711335]
[1750331514321,1.10592253,104920.0,104910.0,0.46711335]
[1750331514880,1.09639192,104920.0,104910.0,0.46711335]
[1750331515082,1.10592253,104920.0,104910.0,0.46711335]
[1750331515311,1.10592253,104920.0,104910.0,0.50707335]
[1750331515618,1.10592244,104920.0,104910.0,0.50707335]
[1750331517619,0.36643025,104920.0,104910.0,0.50707335]
[1750331517875,1.08686149,104920.0,104910.0,0.50707335]
[1750331520150,1.07733124,104920.0,104910.0,0.50707335]
[1750331520578,1.07733124,104920.0,104910.0,0.52417335]
[1750331521006,1.08686158,104920.0,104910.0,0.52417335]
[1750331521418,1.07733124,104920.0,104910.0,0.55970515]
[1750331521628,1.08686149,104920.0,104910.0,0.52417335]
[1750331522912,1.07733124,104920.0,104910.0,0.52417335]
[1750331523789,1.07733124,104920.0,104910.0,0.52413335]
[1750331524665,1.07733124,104920.0,104910.0,0.50703335]
[1750331524666,1.08686158,104920.0,104910.0,0.50703335]
[1750331524878,1.07733124,104920.0,104910.0,0.50703335]
[1750331525090,1.07733124,104920.0,104910.0,0.54256515]
[1750331525306,0.73733124,104920.0,104910.0,0.50703335]
[1750331526431,0.74686149,104920.0,104910.0,0.50703335]
[1750331526862,0.73733124,104920.0,104910.0,0.50703335]
[1750331527104,0.0169,104920.0,104910.0,0.50703335]
[1750331527316,0.74686158,104920.0,104910.0,0.50703335]
[1750331527544,0.73733124,104920.0,104910.0,0.50703335]
[1750331527958,0.02643034,104920.0,104910.0,0.50703335]
[1750331528142,0.74686158,104920.0,104910.0,0.50703335]
[1750331528783,0.73733124,104920.0,104910.0,0.50703335]
[1750331528992,0.74686158,104920.0,104910.0,0.50703335]
[1750331529203,0.73733124,104920.0,104910.0,0.50703335]
[1750331531568,1.07733124,104920.0,104910.0,0.50703335]
[1750331531781,1.08686167,104920.0,104910.0,0.50703335]
[1750331532200,0.73733124,104920.0,104910.0,0.50703335]
[1750331532420,0.0169,104920.0,104910.0,0.50703335]
[1750331532637,0.74686167,104920.0,104910.0,0.50703335]
[1750331532869,0.74686158,104920.0,104910.0,0.50703335]
[1750331533537,0.73733124,104920.0,104910.0,0.50703335]
[1750331533747,1.08686158,104920.0,104910.0,0.50703335]
[1750331534369,1.07733124,104920.0,104910.0,0.50703335]
[1750331535466,0.34,104920.0,104910.0,0.50703335]
[1750331535669,1.06043124,104920.0,104910.0,0.54113335]
[1750331538916,1.06043124,104920.0,104910.0,0.50703335]
[1750331539151,1.07733124,104920.0,104910.0,0.50703335]
[1750331539809,0.00953116,104910.0,104900.0,0.26000753]
[1750331540017,1.10592535,104910.0,104900.0,0.51024646]
[1750331540649,1.10592535,104910.0,104900.0,0.31536646]
[1750331540865,1.10592535,104910.0,104900.0,0.51024646]
[1750331540866,1.10592526,104910.0,104900.0,0.51024646]
[1750331541130,0.74570964,104910.0,104900.0,0.51024646]
[1750331541343,0.74570964,104910.0,104900.0,0.51224646]
[1750331541564,0.75524125,104910.0,104900.0,0.51224646]
[1750331541802,0.71927812,104910.0,104900.0,0.52994646]
[1750331542006,0.72880955,104910.0,104900.0,0.53094646]
[1750331546440,0.73834107,104910.0,104900.0,0.53094646]
[1750331546653,0.73834107,104910.0,104900.0,0.33606646]
[1750331546865,0.73834107,104910.0,104900.0,0.53094646]
[1750331549433,0.71927812,104910.0,104900.0,0.53094646]
[1750331550739,0.70974678,104910.0,104900.0,0.53094646]
[1750331550945,0.71927812,104910.0,104900.0,0.53094646]
[1750331551167,0.70974678,104910.0,104900.0,0.53094646]
[1750331552052,0.70974678,104910.0,104900.0,0.33606646]
[1750331552267,0.70974678,104910.0,104900.0,0.53094646]
[1750331552514,0.71927812,104910.0,104900.0,0.53094646]
[1750331552927,0.70974678,104910.0,104900.0,0.53094646]
[1750331556466,0.70021562,104910.0,104900.0,0.53094646]
[1750331556690,0.70021562,104910.0,104900.0,0.56647826]
[1750331556921,0.70974678,104910.0,104900.0,0.53094646]
[1750331557149,0.70021562,104910.0,104900.0,0.53094646]
[1750331557818,0.34,104910.0,104900.0,0.53094646]
[1750331558063,0.70021562,104910.0,104900.0,0.54914646]
[1750331559568,0.70021562,104920.0,104910.0,0.23713442]
[1750331559785,1.06043124,104920.0,104910.0,0.33241335]
[1750331561287,1.06043124,104920.0,104910.0,0.35031335]
[1750331562191,0.70021562,104920.0,104910.0,0.35031335]
[1750331563079,0.36021562,104920.0,104910.0,0.35031335]
[1750331564473,0.34004,104930.0,104920.0,0.21921353]
[1750331564702,0.70025562,104930.0,104920.0,0.46941246]
[1750331565383,0.70978496,104930.0,104920.0,0.48591246]
[1750331565611,0.34956934,104930.0,104920.0,0.46941246]
[1750331565883,0.71078496,104930.0,104920.0,0.46941246]
[1750331566104,0.72868496,104930.0,104920.0,0.46941246]
[1750331566356,0.73068496,104930.0,104920.0,0.46941246]
[1750331567510,0.73068496,104930.0,104920.0,0.46693246]
[1750331568629,0.74021448,104930.0,104920.0,0.46693246]
[1750331568857,0.73068496,104930.0,104920.0,0.46693246]
[1750331569087,0.74021448,104930.0,104920.0,0.46693246]
[1750331569321,0.74974418,104930.0,104920.0,0.46693246]
[1750331569531,0.74021448,104930.0,104920.0,0.46693246]
[1750331570562,0.37999886,104930.0,104920.0,0.46693246]
[1750331570763,0.74021448,104930.0,104920.0,0.46693246]
[1750331571379,0.74974409,104930.0,104920.0,0.46693246]
[1750331571812,0.74021448,104930.0,104920.0,0.46693246]
[1750331576474,0.40017448,104930.0,104920.0,0.46693246]
[1750331576928,0.40970409,104930.0,104920.0,0.46693246]
[1750331578413,0.41923388,104930.0,104920.0,0.46693246]
[1750331579049,0.40970409,104930.0,104920.0,0.46693246]
[1750331579697,0.41923388,104930.0,104920.0,0.46693246]
[1750331580133,0.41923379,104930.0,104920.0,0.46693246]
[1750331582084,0.40970409,104930.0,104920.0,0.46693246]
[1750331582297,0.40970409,104930.0,104920.0,0.31201246]
[1750331582513,0.40970409,104930.0,104920.0,0.46689246]
[1750331584234,0.04948847,104930.0,104920.0,0.46689246]
[1750331584477,0.40017448,104930.0,104920.0,0.46689246]
[1750331585335,0.40970418,104930.0,104920.0,0.46689246]
[1750331585774,0.40017448,104930.0,104920.0,0.31201246]
[1750331585999,0.40970418,104930.0,104920.0,0.25015893]
[1750331586637,0.96052415,104930.0,104920.0,0.25015893]
[1750331587639,0.96056415,104930.0,104920.0,0.25015893]
[1750331587837,0.01906095,104920.0,104910.0,0.07634385]
[1750331588043,0.93011361,104920.0,104910.0,0.51714237]
[1750331588248,0.93011361,104920.0,104910.0,0.52667416]
[1750331588486,0.93964431,104920.0,104910.0,0.52667416]
[1750331588695,0.93964431,104920.0,104910.0,0.51714237]
[1750331591589,0.21921307,104920.0,104910.0,0.52667416]
[1750331591792,0.57942869,104920.0,104910.0,0.52667416]
[1750331592496,0.57946869,104920.0,104910.0,0.52667416]
[1750331593043,0.56993799,104920.0,104910.0,0.52667416]
[1750331593267,0.56993799,104920.0,104910.0,0.53620586]
[1750331594896,0.56993799,104920.0,104910.0,0.54573747]
[1750331595634,0.56993799,104920.0,104910.0,0.53620586]
[1750331596286,0.56993799,104920.0,104910.0,0.52667416]
[1750331596965,0.56993799,104920.0,104910.0,0.53620586]
[1750331597487,0.56993799,104920.0,104910.0,0.28999893]
[1750331597488,0.93968449,104920.0,104910.0,0.28999893]
[1750331597735,0.93968449,104920.0,104910.0,0.25011893]
[1750331597736,0.95788449,104920.0,104910.0,0.25011893]
[1750331597979,0.95788449,104920.0,104910.0,0.28565073]
[1750331598224,0.96741556,104920.0,104910.0,0.25011893]
[1750331598466,0.96741547,104920.0,104910.0,0.25011893]
[1750331598724,0.9578844,104920.0,104910.0,0.25011893]
[1750331598946,0.96741538,104920.0,104910.0,0.25011893]
[1750331599439,0.96741528,104920.0,104910.0,0.25011893]
[1750331599673,0.96741528,104920.0,104910.0,0.2596509]
[1750331599886,0.96741528,104920.0,104910.0,0.25011893]
[1750331601359,0.96741528,104920.0,104910.0,0.2596509]
[1750331601598,0.9578844,104920.0,104910.0,0.2596509]
[1750331601827,0.96741538,104920.0,104910.0,0.25011893]
[1750331602668,0.9578844,104920.0,104910.0,0.25965081]
[1750331602899,0.94835361,104920.0,104910.0,0.45982219]
[1750331603109,0.94835361,104920.0,104910.0,0.46935389]
[1750331603315,0.94835361,104920.0,104910.0,0.48725389]
[1750331603510,0.94835361,104920.0,104910.0,0.47772219]
[1750331603716,0.93015361,104920.0,104910.0,0.47772219]
[1750331604374,0.93015361,104920.0,104910.0,0.48725389]
[1750331605683,0.93015361,104920.0,104910.0,0.47772219]
[1750331606761,0.93015361,104920.0,104910.0,0.52713389]
[1750331607514,0.93015361,104920.0,104910.0,0.51760219]
[1750331607751,0.93015361,104920.0,104910.0,0.52713389]
[1750331608214,0.93015361,104920.0,104910.0,0.56266569]
[1750331608412,0.93015361,104920.0,104910.0,0.52713389]
[1750331610694,0.93015361,104920.0,104910.0,0.48725389]
[1750331611148,0.93015361,104920.0,104910.0,0.4967855]
[1750331611819,0.93015361,104920.0,104910.0,0.48725389]
[1750331612029,0.93015361,104920.0,104910.0,0.4967855]
[1750331612269,0.93015361,104920.0,104910.0,0.48725389]
[1750331612492,0.93015352,104920.0,104910.0,0.4967855]
[1750331612923,0.93015352,104920.0,104910.0,0.48725389]
[1750331613128,0.93015352,104920.0,104910.0,0.4967855]
[1750331613806,0.93015352,104920.0,104910.0,0.48725389]
[1750331614077,0.93015352,104920.0,104910.0,0.4967855]
[1750331614703,0.93015352,104920.0,104910.0,0.48725389]
[1750331615351,0.93015352,104920.0,104910.0,0.4967855]
[1750331615578,0.93019352,104920.0,104910.0,0.4967855]
[1750331615798,0.93972422,104920.0,104910.0,0.48725389]
[1750331616141,0.93019352,104920.0,104910.0,0.48725389]
[1750331616346,0.93019352,104920.0,104910.0,0.4967855]
[1750331620767,0.93019352,104920.0,104910.0,0.48725389]
[1750331621032,0.93019352,104920.0,104910.0,0.4502904]
[1750331621312,0.95662422,104920.0,104910.0,0.4502904]
[1750331621573,0.95662422,104920.0,104910.0,0.45982219]
[1750331623003,0.96615501,104920.0,104910.0,0.4502904]
[1750331623279,0.96615501,104920.0,104910.0,0.45982219]
[1750331623499,0.95662422,104920.0,104910.0,0.45982219]
[1750331624918,0.95662422,104920.0,104910.0,0.4502904]
[1750331625367,0.95662422,104920.0,104910.0,0.45982219]
[1750331626057,0.9661551,104920.0,104910.0,0.4502904]
[1750331626285,0.95662422,104920.0,104910.0,0.4502904]
[1750331626514,0.95662422,104920.0,104910.0,0.45982219]
[1750331627243,0.95662422,104920.0,104910.0,0.4502904]
[1750331627513,0.95662422,104920.0,104910.0,0.45982219]
[1750331628910,0.95662422,104920.0,104910.0,0.4502904]
[1750331629091,0.95662422,104920.0,104910.0,0.45982219]
[1750331629237,0.95662422,104920.0,104910.0,0.4502904]
[1750331629452,0.95662422,104920.0,104910.0,0.26914278]
[1750331629675,0.95662422,104920.0,104910.0,0.27867457]
[1750331630296,0.95662422,104920.0,104910.0,0.2596109]
[1750331630516,0.95662422,104920.0,104910.0,0.26914269]
[1750331631589,0.95662422,104920.0,104910.0,0.45978228]
[1750331633360,0.93019352,104920.0,104910.0,0.46931398]
[1750331633570,0.93019352,104920.0,104910.0,0.48771398]
[1750331634827,0.93019352,104920.0,104910.0,0.33291398]
[1750331635079,0.93019352,104920.0,104910.0,0.48771398]
[1750331635332,0.93019352,104920.0,104910.0,0.48551398]
[1750331637171,0.93019352,104920.0,104910.0,0.49504559]
[1750331638137,0.93019352,104920.0,104910.0,0.48551398]
[1750331638574,0.93019352,104920.0,104910.0,0.49504559]
[1750331639006,0.93019352,104920.0,104910.0,0.50457711]
[1750331639245,8e-05,104920.0,104910.0,0.34977612]
[1750331639469,8e-05,104920.0,104910.0,0.93673259]
[1750331640417,8e-05,104920.0,104910.0,1.08673259]
[1750331640663,8e-05,104920.0,104910.0,1.08973259]
[1750331642515,8e-05,104920.0,104910.0,1.09984071]
[1750331642742,8e-05,104920.0,104910.0,1.10384071]
[1750331643373,8e-05,104920.0,104910.0,1.45705633]
[1750331643858,0.02208,104920.0,104910.0,1.45905633]
[1750331644701,0.02208,104920.0,104910.0,1.09884071]
[1750331644933,0.02208,104920.0,104910.0,1.08873259]
[1750331646662,0.02208,104920.0,104910.0,0.72851697]
[1750331646874,0.02208,104920.0,104910.0,1.08873259]
[1750331647984,0.02208,104920.0,104910.0,1.31761259]
[1750331648618,0.02208,104920.0,104910.0,0.95739697]
[1750331648879,0.02208,104920.0,104910.0,1.32766729]
[1750331649732,0.02208,104920.0,104910.0,0.96745167]
[1750331649946,0.02208,104920.0,104910.0,1.32766729]
[1750331651516,0.02208,104920.0,104910.0,0.96745167]
[1750331651747,0.02208,104920.0,104910.0,1.32766729]
[1750331661690,0.02208,104920.0,104910.0,0.96745167]
[1750331661989,0.02208,104920.0,104910.0,1.32766729]
[1750331663561,0.02208,104920.0,104910.0,1.68788291]
[1750331665315,0.02208,104920.0,104910.0,1.32766729]
[1750331667044,0.02208,104920.0,104910.0,1.40384907]
[1750331667472,0.02208,104920.0,104910.0,1.39379437]
[1750331668401,0.0065846,104920.0,104910.0,1.39379437]
[1750331668619,0.0065846,104920.0,104910.0,1.31761259]
[1750331669741,0.0065846,104920.0,104910.0,1.39379437]
[1750331670320,0.0065846,104920.0,104910.0,1.40355199]
[1750331670980,0.0065846,104920.0,104910.0,1.45355199]
[1750331671322,0.0065846,104920.0,104910.0,1.81376761]
[1750331671903,0.0065846,104920.0,104910.0,1.45355199]
[1750331674340,0.0065846,104920.0,104910.0,1.81376761]
[1750331674604,0.0065846,104920.0,104910.0,1.45355199]
[1750331675686,0.0065846,104920.0,104910.0,1.09333637]
[1750331675953,0.0065846,104920.0,104910.0,1.45355199]
[1750331678431,0.00045376,104920.0,104910.0,1.45355199]
[1750331685409,0.00045376,104920.0,104910.0,1.09333637]
[1750331685622,0.00045376,104920.0,104910.0,1.45355199]
[1750331688489,3.371e-05,104920.0,104910.0,1.45355199]
[1750331690645,3.371e-05,104920.0,104910.0,1.45335199]
[1750331691873,3.371e-05,104920.0,104910.0,1.09313637]
[1750331692089,3.371e-05,104920.0,104910.0,1.45335199]
[1750331693639,0.22345782,104940.0,104930.0,0.23373348]
[1750331693844,0.22345782,104940.0,104930.0,0.52341241]
[1750331694288,0.34999402,104950.0,104940.0,0.21917175]
[1750331694505,0.71020964,104950.0,104940.0,0.46909068]
[1750331696268,0.71020964,104950.0,104940.0,0.47209068]
[1750331696496,0.74330964,104950.0,104940.0,0.47209068]
[1750331696922,0.74330964,104950.0,104940.0,0.48009068]
[1750331698409,0.74330964,104950.0,104940.0,0.51985068]
[1750331700697,1.10352526,104950.0,104940.0,0.31592207]
[1750331700921,1.13210893,104950.0,104940.0,0.48005068]
[1750331701143,1.13210884,104950.0,104940.0,0.48005068]
[1750331701340,1.141637,104950.0,104940.0,0.48005068]
[1750331702254,1.15116525,104950.0,104940.0,0.48005068]
[1750331702479,1.12258077,104950.0,104940.0,0.48005068]
[1750331702697,0.39262164,104950.0,104940.0,0.48005068]
[1750331702929,0.76236506,104950.0,104940.0,0.48005068]
[1750331703371,0.75283726,104950.0,104940.0,0.47893068]
[1750331703587,0.76236515,104950.0,104940.0,0.47893068]
[1750331703798,0.74330964,104950.0,104940.0,0.47893068]
[1750331704669,0.74334964,104950.0,104940.0,0.47893068]
[1750331706415,0.38313402,104950.0,104940.0,0.47893068]
[1750331706689,0.74334964,104950.0,104940.0,0.47893068]
[1750331707388,0.74334964,104950.0,104940.0,0.51865068]
[1750331710962,0.38313402,104950.0,104940.0,0.51865068]
[1750331711170,0.74334964,104950.0,104940.0,0.51865068]
[1750331714307,0.75287716,104950.0,104940.0,0.51865068]
[1750331714990,0.75287716,104950.0,104940.0,0.32433068]
[1750331715207,0.75287716,104950.0,104940.0,0.51865068]
[1750331715672,0.74334964,104950.0,104940.0,0.51865068]
[1750331716124,0.75287726,104950.0,104940.0,0.51865068]
[1750331716348,0.74334964,104950.0,104940.0,0.51865068]
[1750331716566,0.75287716,104950.0,104940.0,0.51865068]
[1750331716766,0.74334964,104950.0,104940.0,0.51865068]
[1750331718284,0.38313402,104950.0,104940.0,0.51865068]
[1750331718518,0.72684964,104950.0,104940.0,0.51865068]
[1750331719985,0.73637716,104950.0,104940.0,0.51861068]
[1750331720141,0.73637716,104950.0,104940.0,0.32433068]
[1750331720374,0.72684964,104950.0,104940.0,0.51861068]
[1750331721387,0.73637726,104950.0,104940.0,0.51861068]
[1750331722853,0.73637716,104950.0,104940.0,0.51861068]
[1750331724321,0.74590487,104950.0,104940.0,0.51861068]
[1750331725459,0.74590478,104950.0,104940.0,0.51861068]
[1750331726825,0.72684964,104950.0,104940.0,0.51861068]
[1750331729206,0.71024964,104950.0,104940.0,0.53631068]
[1750331729682,0.71024964,104950.0,104940.0,0.51861068]
[1750331729866,0.72864964,104950.0,104940.0,0.51861068]
[1750331730343,0.73817735,104950.0,104940.0,0.36405068]
[1750331730532,0.73817735,104950.0,104940.0,0.51861068]
[1750331730828,0.72864964,104950.0,104940.0,0.51861068]
[1750331731031,0.73817726,104950.0,104940.0,0.51861068]
[1750331731463,0.72864964,104950.0,104940.0,0.51861068]
[1750331737518,0.72864964,104950.0,104940.0,0.51853068]
[1750331738153,0.73817716,104950.0,104940.0,0.51853068]
[1750331739862,0.72864964,104950.0,104940.0,0.51853068]
[1750331740888,0.73817726,104950.0,104940.0,0.35986248]
[1750331741093,0.73817726,104950.0,104940.0,0.51853068]
[1750331741295,0.72864964,104950.0,104940.0,0.51853068]
[1750331741706,0.73817716,104950.0,104940.0,0.51853068]
[1750331742606,0.72864964,104950.0,104940.0,0.51853068]
[1750331743043,0.73817726,104950.0,104940.0,0.51853068]
[1750331745239,0.74770506,104950.0,104940.0,0.51853068]
[1750331745453,0.74770497,104950.0,104940.0,0.51853068]
[1750331745658,0.73817726,104950.0,104940.0,0.51853068]
[1750331746500,0.74770506,104950.0,104940.0,0.51853068]
[1750331746689,0.73817726,104950.0,104940.0,0.51853068]
[1750331747848,0.74770506,104950.0,104940.0,0.51853068]
[1750331748049,0.73817726,104950.0,104940.0,0.51853068]
[1750331748671,0.74770506,104950.0,104940.0,0.51853068]
[1750331748872,0.73817726,104950.0,104940.0,0.51853068]
[1750331749801,0.74770506,104950.0,104940.0,0.51853068]
[1750331750007,0.73817726,104950.0,104940.0,0.51853068]
[1750331750731,1.10792068,104950.0,104940.0,0.32433068]
[1750331750983,0.74770506,104950.0,104940.0,0.51853068]
[1750331751338,0.76676111,104950.0,104940.0,0.51853068]
[1750331751576,1.12697673,104950.0,104940.0,0.51853068]
[1750331751938,0.96685629,104950.0,104940.0,0.35448207]
[1750331752182,0.77628936,104950.0,104940.0,0.52801939]
[1750331752397,1.13650498,104950.0,104940.0,0.52801939]
[1750331752809,1.12697673,104950.0,104940.0,0.52801939]
[1750331753214,1.12697664,104950.0,104940.0,0.52801939]
[1750331753415,0.76676102,104950.0,104940.0,0.52801939]
[1750331753616,1.12697664,104950.0,104940.0,0.52801939]
[1750331754039,1.11744857,104950.0,104940.0,0.52801939]
[1750331754248,1.12697655,104950.0,104940.0,0.52801939]
[1750331755582,0.40654531,104950.0,104940.0,0.52801939]
[1750331755765,1.12697655,104950.0,104940.0,0.52801939]
[1750331758463,1.13650471,104950.0,104940.0,0.52801939]
[1750331758678,1.12697655,104950.0,104940.0,0.52801939]
[1750331758909,1.41125818,104950.0,104940.0,0.011]
[1750331759140,1.49312357,104950.0,104940.0,0.011]
[1750331759380,1.5885171,104950.0,104940.0,0.011]
[1750331759878,1.6171521,104950.0,104940.0,0.011]
[1750331760089,1.6171521,104950.0,104940.0,0.008]
[1750331760310,1.6171521,104950.0,104940.0,0.01]
[1750331760533,1.6171521,104950.0,104940.0,0.002]
[1750331760756,1.45768145,104950.0,104940.0,0.002]
[1750331761207,1.45768145,104950.0,104940.0,0.008]
[1750331761424,0.61920144,104950.0,104940.0,0.008]
[1750331761651,1.33963268,104950.0,104940.0,0.008]
[1750331764209,1.33963268,104950.0,104940.0,0.01752925]
[1750331765583,1.33963268,104950.0,104940.0,0.20811434]
[1750331765825,1.33963268,104950.0,104940.0,0.2176435]
[1750331766542,1.33963268,104950.0,104940.0,0.22717257]
[1750331766773,0.97708575,104950.0,104940.0,0.2462298]
[1750331767009,1.13156575,104950.0,104940.0,0.2462298]
[1750331767299,1.35036093,104950.0,104940.0,0.2271723]
[1750331767532,1.33166093,104950.0,104940.0,0.23670119]
[1750331767746,1.33166093,104950.0,104940.0,0.24622999]
[1750331768006,1.33166093,104950.0,104940.0,0.24622954]
[1750331768239,1.34118927,104950.0,104940.0,0.24622954]
[1750331768458,1.33166129,104950.0,104940.0,0.22717203]
[1750331768680,1.33166129,104950.0,104940.0,0.21764314]
[1750331769115,1.33166129,104950.0,104940.0,0.22717203]
[1750331770211,1.33166129,104950.0,104940.0,0.23670083]
[1750331770429,1.32213313,104950.0,104940.0,0.22717203]
[1750331771090,1.35064435,104950.0,104940.0,0.22717203]
[1750331771509,1.32213313,104950.0,104940.0,0.22717203]
[1750331772163,1.11316584,104950.0,104940.0,0.23670064]
[1750331772393,1.11316584,104950.0,104940.0,0.25570064]
[1750331773428,1.12269418,104950.0,104940.0,0.25570064]
[1750331774277,1.31326111,104950.0,104940.0,0.22717203]
[1750331774493,1.33226111,104950.0,104940.0,0.22717203]
[1750331774699,1.15878111,104950.0,104940.0,0.23670083]
[1750331774954,1.11316584,104950.0,104940.0,0.26392908]
[1750331775162,1.12269418,104950.0,104940.0,0.26392908]
[1750331775989,1.31326111,104950.0,104940.0,0.25440047]
[1750331776246,1.31326111,104950.0,104940.0,0.24487176]
[1750331776450,1.30373313,104950.0,104940.0,0.21764332]
[1750331776667,1.32223313,104950.0,104940.0,0.21764332]
[1750331777513,1.32223313,104950.0,104940.0,0.21764341]
[1750331777713,1.32223313,104950.0,104940.0,0.22717239]
[1750331777931,1.32223313,104950.0,104940.0,0.23670128]
[1750331778641,1.32223313,104950.0,104940.0,0.24623008]
[1750331778862,1.32223313,104950.0,104940.0,0.24622954]
[1750331778863,1.1316662,104950.0,104940.0,0.24622954]
[1750331779280,1.13166584,104950.0,104940.0,0.24622954]
[1750331779509,1.13166584,104950.0,104940.0,0.24622908]
[1750331780598,1.12269346,104950.0,104940.0,0.24622908]
[1750331780791,1.12269346,104950.0,104940.0,0.26542908]
[1750331781097,1.1131653,104950.0,104940.0,0.26542908]
[1750331782011,1.12269337,104950.0,104940.0,0.26542908]
[1750331782234,1.13222153,104950.0,104940.0,0.26542908]
[1750331782456,1.12269337,104950.0,104940.0,0.26542908]
[1750331782966,1.1131653,104950.0,104940.0,0.26542908]
[1750331783614,1.12269346,104950.0,104940.0,0.26542908]
[1750331784058,0.95868512,104950.0,104940.0,0.26542908]
[1750331784275,0.95868512,104950.0,104940.0,0.28512908]
[1750331784721,0.57941399,104950.0,104940.0,0.32066088]
[1750331784974,0.37020964,104950.0,104940.0,0.28512908]
[1750331785413,0.71020964,104950.0,104940.0,0.28512908]
[1750331785853,0.71020964,104950.0,104940.0,0.38040801]
[1750331786544,0.71020964,104950.0,104940.0,0.53484801]
[1750331790219,0.34999402,104950.0,104940.0,0.53484801]
[1750331790457,0.71020964,104950.0,104940.0,0.53484801]
[1750331790753,4e-05,104950.0,104940.0,0.93470363]
[1750331791711,4e-05,104950.0,104940.0,0.93270363]
[1750331791916,4e-05,104950.0,104940.0,0.92670363]
[1750331792135,4e-05,104950.0,104940.0,0.92970363]
[1750331792365,4e-05,104950.0,104940.0,0.57948801]
[1750331793699,4e-05,104950.0,104940.0,0.93970363]
[1750331793916,4e-05,104950.0,104940.0,0.57648801]
[1750331794407,4e-05,104950.0,104940.0,0.58048801]
[1750331798495,0.36025562,104950.0,104940.0,0.58048801]
[1750331799611,4e-05,104950.0,104940.0,0.58048801]
[1750331803896,4e-05,104950.0,104940.0,0.95524448]
[1750331805355,4e-05,104950.0,104940.0,1.3154601]
[1750331806284,9e-05,104960.0,104950.0,0.36915087]
[1750331806499,9e-05,104960.0,104950.0,0.86104542]
[1750331807596,9e-05,104970.0,104960.0,0.23367084]
[1750331807811,0.36030562,104970.0,104960.0,0.56118977]
[1750331808028,0.36030562,104970.0,104960.0,0.36714977]
[1750331808236,0.36030562,104970.0,104960.0,0.56118977]
[1750331808899,0.36030562,104970.0,104960.0,0.36714977]
[1750331809118,0.36030562,104970.0,104960.0,0.56118977]
[1750331809964,0.36030562,104970.0,104960.0,0.56518977]